Cogmind - Beta 13 *** ADVENTURER MODE // 2024.07.14 @ 18:15:46 // Winter2022/Polymind Player: Kiks Result: Self-destructed Performance ------------- Evolutions (1) 500 Regions Visited (3) 600 Robots Destroyed (24) 120 Value Destroyed (337) 337 Prototype IDs (0) 0 Alien Tech Used (0) 0 Bonus (1970) 1970 TOTAL SCORE: 3267 Bonus ------- Polymind Skill 1970 Cogmind --------- Core Integrity 369/400 Matter 0/0 Energy 110/110 System Corruption 0% Temperature Cool (0) Movement Walking (120) Location -9/Materials Parts ------- > --- POWER (1) -------- Light Nuclear Core > --- PROPULSION (2) --- Aluminum Leg Aluminum Leg > --- UTILITY (1) ------ Improved Heat Sink > --- WEAPON (1) ------- Particle Gun > --- INVENTORY (1) ---- (None) Peak State ------------ > --- POWER ------------ Light Nuclear Core > --- PROPULSION ------- Aluminum Leg Aluminum Leg > --- UTILITY ---------- Improved Heat Sink > --- WEAPON ----------- Particle Gun > --- INVENTORY -------- (None) [Rating: 10] Favorites ----------- Power Light Nuclear Core Engine Light Ion Engine Power Core Light Nuclear Core Propulsion Aluminum Leg Leg Aluminum Leg Wheel Compact Wheel Hover Unit Hover Unit Utility Improved Heat Sink Device Improved Heat Sink Storage Small Storage Unit Processor Visual Processing Unit Weapon Particle Gun Energy Gun Particle Gun Build | -11 -10 -10 -9 ------- Run | Yrd Mat Min Mat Slots Evolved . | . . . . Power . | . . . . Propulsion . | . . . . Utility . | . . . . Weapon . | . . . . Parts Attached . | . . . . Power . | . . . . Engine . | . . . . Core . | . . . . Reactor . | . . . . Propulsion . | . . . . Treads . | . . . . Leg . | . . . . Wheel . | . . . . Hover . | . . . . Flight . | . . . . Utility . | . . . . Device . | . . . . Storage . | . . . . Processor . | . . . . Hackware . | . . . . Protection . | . . . . Artifact . | . . . . Weapon . | . . . . Energy Gun . | . . . . Energy Cannon . | . . . . Ballistic Gun . | . . . . Ballistic Cannon . | . . . . Launcher . | . . . . Special Weapon . | . . . . Impact Weapon . | . . . . Slashing Weapon . | . . . . Piercing Weapon . | . . . . Special Melee Weapon . | . . . . Unidentified Prototypes . | . . . . Parts Lost . | . . . . Power . | . . . . Propulsion . | . . . . Utility . | . . . . Weapon . | . . . . Highest Loss Streak . | . . . . To Critical Strikes . | . . . . Average Slot Usage (%) 100 | . 100 100 100 Engine 4 | . 19 . . Core 15 | . . 19 20 Leg 30 | . . 39 40 Wheel 7 | . 31 . . Hover 1 | . 6 . . Device 19 | . 19 19 20 Storage 3 | . 15 . . Processor 1 | . 6 . . Energy Gun 15 | . . 19 20 Naked Turns 1 | . 1 . . Heaviest Build 9 | 9 9 9 9 Greatest Support 32 | 32 32 20 20 Greatest Overweight (x) . | . . . . Average Overweight (x) . | . . . . Largest Inventory Capacity 4 | 4 4 1 1 Average Capacity 1 | 3 3 . 1 Most Carried 4 | 4 4 1 . Average Carried . | 2 . . . Final Capacity 4 | 4 . 1 1 Final Carried 4 | 4 . . . Class Distribution -------------------- 76% | Grunt 18% | Recycler 4% | Watcher Dominant Class ---------------- Recycler | -10/Materials Grunt | -10/Mines Grunt | -9/Materials Resources | -11 -10 -10 -9 ----------- Run | Yrd Mat Min Mat Matter Collected . | . . . . Remotely . | . . . . Salvage Created 515 | . . 259 256 Parts 49 | . . 26 23 Haulers Intercepted . | . . . . Recyclers Shooed 4 | . . 2 2 Parts Field Recycled . | . . . . Retrieved Matter . | . . . . Parts Self-Destructed . | . . . . Prevented . | . . . . Kills | -11 -10 -10 -9 ------- Run | Yrd Mat Min Mat Combat Hostiles Destroyed 12 | . . 1 11 Guns 12 | . . 1 11 Classes Destroyed 8 | . . 6 2 Worker 2 | . . 2 . Builder 1 | . . 1 . Tunneler 4 | . . 4 . Recycler 4 | . . 2 2 Watcher 1 | . . 1 . Swarmer 7 | . . . 7 Grunt 3 | . . 1 2 Sentry 2 | . . . 2 Best Kill Streak 5 | . . 3 5 Combat Bots Only 5 | . . 1 5 Max Kills in Single Turn 1 | . . 1 1 Gunslinging . | . . . . Exploded . | . . . . Melee . | . . . . Uniques/NPCs Destroyed . | . . . . Combat | -11 -10 -10 -9 -------- Run | Yrd Mat Min Mat Hostile Shots Fired 27 | . . 2 25 Missed 9 | . . 2 7 Damage Taken 164 | . . . 164 Core 31 | . . . 31 Absorbed by Shields . | . . . . Ignored by Resistances 47 | . . . 47 Core Remaining (%) 100 | 100 . 100 . Volleys Fired 63 | . . 29 34 Largest 1 | . . 1 1 Hottest 65 | . . 65 65 Shots Fired 63 | . . 29 34 Gun 63 | . . 29 34 Cannon . | . . . . Launcher . | . . . . Special . | . . . . Kinetic . | . . . . Thermal 63 | . . 29 34 Explosive . | . . . . Electromagnetic . | . . . . Robot Hit Streak 10 | . . 5 10 Robot Miss Streak 2 | . . 2 2 Penetration Max . | . . . . Secondary Targets . | . . . . Shots Hit Robots 49 | . . 21 28 Core Hits 28 | . . 11 17 Critical Kills . | . . . . Critical Parts Destroyed . | . . . . Critical Strikes 3 | . . . 3 Burn 3 | . . . 3 Melee Attacks . | . . . . Impact . | . . . . Slashing . | . . . . Piercing . | . . . . Sneak Attacks . | . . . . Combat Hostiles . | . . . . Follow-up Attacks . | . . . . Damage Inflicted 758 | . . 315 443 Guns 758 | . . 315 443 Cannons . | . . . . Explosions . | . . . . Melee . | . . . . Ramming . | . . . . Kinetic . | . . . . Thermal 758 | . . 315 443 Explosive . | . . . . Electromagnetic . | . . . . Impact . | . . . . Slashing . | . . . . Piercing . | . . . . Highest Corruption . | . . . . Average Corruption . | . . . . Corruption Purged . | . . . . Corruption Blocked . | . . . . Overload Shots . | . . . . Overflow Damage . | . . . . Projectiles . | . . . . Explosions . | . . . . Melee . | . . . . Knockbacks . | . . . . Impact . | . . . . Kinetic . | . . . . Secondary . | . . . . Self-Inflicted Damage . | . . . . Shots . | . . . . Rammed . | . . . . Targets Rammed . | . . . . Kicked . | . . . . Crushed . | . . . . Highest Temperature 24 | . . 24 5 Average Temperature 10 | . . 20 3 Received Heat Transfer 54 | . . . 54 Siege Activations . | . . . . Robots Corrupted . | . . . . Combat Hostiles . | . . . . Parts Fried . | . . . . Impact Corruptions . | . . . . Robots Melted . | . . . . Combat Hostiles . | . . . . Parts Melted 5 | . . 1 4 Heat Transferred 2035 | . . 777 1258 Parts Sabotaged . | . . . . Parts Stolen . | . . . . Parts Stripped . | . . . . Power Chain Reactions . | . . . . Alert | -11 -10 -10 -9 ------- Run | Yrd Mat Min Mat Peak Influence 311 | . 105 89 311 Initial 34 | . . 34 . Average 54 | . 21 37 143 Maximum Alert Level 1 | . . . 1 Low Security (%) 91 | 100 100 100 60 Level 1 8 | . . . 39 Level 2 . | . . . . Level 3 . | . . . . Level 4 . | . . . . Level 5 . | . . . . High Security . | . . . . Max Security . | . . . . Squads Dispatched 3 | . 2 . 1 Investigation 2 | . 2 . . Extermination . | . . . . Reinforcement 1 | . . . 1 Assault . | . . . . Garrison . | . . . . Intercept . | . . . . Searches Triggered . | . . . . Construction Impeded . | . . . . Haulers Reinforced . | . . . . Active Scanning Responses . | . . . . Cargo Convoy Interrupts . | . . . . Stealth | -11 -10 -10 -9 --------- Run | Yrd Mat Min Mat Distress Signals . | . . . . Communications Jammed . | . . . . Distress Signals . | . . . . Times Spotted 20 | . 2 4 14 Peak Tracking Total 4 | . 1 2 4 Tactical Retreats . | . . . . Traps | -11 -10 -10 -9 ------- Run | Yrd Mat Min Mat Traps Triggered 1 | . 1 . . Indirectly . | . . . . Trap Hack Attempts . | . . . . Triggered . | . . . . Disarmed . | . . . . Reprogrammed . | . . . . Reused . | . . . . Traps Extracted . | . . . . Installed . | . . . . Triggered . | . . . . Machines | -11 -10 -10 -9 ---------- Run | Yrd Mat Min Mat Machines Disabled . | . . . . Max in Single Turn . | . . . . Machines Repaired . | . . . . Machines Dismantled . | . . . . Machines Sabotaged . | . . . . Overloaded Fab Kills . | . . . . Hacking | -11 -10 -10 -9 --------- Run | Yrd Mat Min Mat Machines Accessed 3 | . 2 . 1 Terminals 3 | . 2 . 1 Fabricators . | . . . . Repair Stations . | . . . . Recycling Units . | . . . . Scanalyzers . | . . . . Garrison Access . | . . . . Total Hacks 9 | . 4 . 5 Successful 4 | . 2 . 2 Failed 5 | . 2 . 3 Catastrophic 1 | . 1 . . Database Lockouts . | . . . . Manual 7 | . 4 . 3 Terminals 9 | . 4 . 5 Fabricators . | . . . . Repair Stations . | . . . . Recycling Units . | . . . . Scanalyzers . | . . . . Garrison Access . | . . . . Terminal Hacks 3 | . 2 . 1 Recycling Unit Index 1 | . 1 . . Unreport Threat 1 | . 1 . . Zone Layout 1 | . . . 1 Fabricator Hacks . | . . . . Repair Station Hacks . | . . . . Recycling Unit Hacks . | . . . . Scanalyzer . | . . . . Garrison Access Hacks . | . . . . Unauthorized Hacks 1 | . . . 1 Terminals 1 | . . . 1 Botnet 1 | . . . 1 Fabricators . | . . . . Repair Stations . | . . . . Recycling Units . | . . . . Scanalyzers . | . . . . Garrison Access . | . . . . Data Cores Recovered . | . . . . Used . | . . . . Hacking Detections 2 | . 1 . 1 Full Trace Events 1 | . 1 . . Feedback Events . | . . . . Feedback Blocked . | . . . . Robot Schematics Acquired . | . . . . Robots Built . | . . . . Authchips . | . . . . Time . | . . . . Total Robot Build Rating . | . . . . Part Schematics Acquired . | . . . . Parts Built . | . . . . Authchips . | . . . . Time . | . . . . Total Part Build Rating . | . . . . Parts Repaired . | . . . . Time . | . . . . Parts Recycled . | . . . . Recycled Matter . | . . . . Retrieved Matter . | . . . . Retrieved Components . | . . . . Parts Scanalyzed . | . . . . Part Schematics Acquired . | . . . . Parts Damaged . | . . . . Bothacking | -11 -10 -10 -9 ------------ Run | Yrd Mat Min Mat Used RIF Installer . | . . . . Robots Hacked 2 | . 1 1 . Non-combat 1 | . 1 . . Combat 1 | . . 1 . Robot Hacks Applied 3 | . 2 1 . map_route 1 | . 1 . . mark_security 1 | . 1 . . find_shortcuts 1 | . . 1 . Relay Couplers Released . | . . . . Fabnet Peak Effective % . | . . . . Robots Rewired . | . . . . Allies Hacked . | . . . . Hacks Repelled . | . . . . Allies | -11 -10 -10 -9 -------- Run | Yrd Mat Min Mat Total Allies . | . . . . Largest Group . | . . . . Highest-Rated Group . | . . . . Highest-Rated Ally . | . . . . Total Orders . | . . . . Ally Attacks . | . . . . Total Damage . | . . . . Kills . | . . . . Allies Corrupted . | . . . . Allies Melted . | . . . . Intel | -11 -10 -10 -9 ------- Run | Yrd Mat Min Mat Robot Analysis Total 3 | 1 1 1 . Derelict Logs Recovered 1 | . . 1 . Drone Launches . | . . . . Drone Recoveries . | . . . . Exploration | -11 -10 -10 -9 ------------- Run | Yrd Mat Min Mat Turns Passed 1511 | 40 345 815 311 Spaces Moved 1259 | 43 391 635 190 Core 14 | 12 1 1 . Treads . | . . . . Legs 816 | . . 626 190 Wheels 299 | 31 268 . . Hover 130 | . 122 8 . Flight . | . . . . Fastest Speed 50 | 50 50 50 120 Average Speed 107 | 86 86 119 120 Slowest Speed 120 | 100 100 120 120 Overloaded Moves . | . . . . Propulsion Burnouts . | . . . . Robots Hopped . | . . . . Cave-ins Triggered . | . . . . Exploration Rate (%) 48 | 3 70 94 26 Regions Visited 3 Branch Regions 1 Pre-discovered Areas 1 | . . 1 . Known Exits Taken 1 | . 1 . . Unknown Exits Taken 2 | 1 . 1 . Scrap Searched 1 | . . 1 . Spaces Dug . | . . . . Terrain Destroyed . | . . . . Melee . | . . . . Projectile . | . . . . AOE . | . . . . Terrain Rammed . | . . . . Walls Destroyed . | . . . . Machines Disabled . | . . . . Actions | -11 -10 -10 -9 --------- Run | Yrd Mat Min Mat Total 1348 | 46 398 665 239 Wait 15 | . . . 15 Move 1256 | 42 390 634 190 Hop . | . . . . Pick Up 7 | 4 2 1 . Fast Attach . | . . . . Attach . | . . . . Detach . | . . . . Swap . | . . . . Drop 1 | . . 1 . Fire 63 | . . 29 34 Melee . | . . . . Ram . | . . . . Kick . | . . . . Crush . | . . . . Escape Stasis . | . . . . Rewire . | . . . . Trap . | . . . . Miscellaneous 6 | . 6 . . Route ------- -11/Scrapyard -10/Materials (discovered 3 exits: *Mat x2 / *Min) -10/Mines (discovered 2 exits: *Mat x2) -9/Materials (discovered 1 exit: [*Sto]) History --------- Turn | Location | Event 4 | -11/Scrapyard | Discovered new exit (range 15) 41 | -11/Scrapyard | Entered Materials 132 | -10/Materials | Discovered new exit (range 14) 241 | -10/Materials | Discovered new exit (range 8) 377 | -10/Materials | Discovered new exit (range 16) 385 | -10/Materials | Identified exit to Mines 386 | -10/Materials | Entered Mines 545 | -10/Mines | Learned location of Recycling (-9) 600 | -10/Mines | A weapon hastily lodged in a ceiling crevice suddenly fell to the ground 654 | -10/Mines | Discovered new exit (range 15) 1191 | -10/Mines | Discovered new exit (range 5) 1201 | -10/Mines | Entered Materials 1329 | -9/Materials | Discovered new exit (range 15) 1512 | -9/Materials | Self-destructed Last Messages --------------- 01369_ Flight Unit melted. 01369_ S-10 Pest destroyed. 01379_ S-10 Pest suffers critical hit (Burn). 01379_ Flight Unit melted. 01379_ S-10 Pest destroyed. 01390_ Y-45 Defender destroyed. 01395_ Acquired 17 Protomatter. 01427_ G-34 Mercenary destroyed. 01429_ G-34 Mercenary suffers critical hit (Burn). 01429_ G-34 Mercenary destroyed. 01433_ U-05 Engineer builds a Door. 01438_ K-01 Serf collects debris. 01441_ Acquired 13 Protomatter. 01444_ K-01 Serf collects debris. 01447_ R-06 Scavenger collects Aluminum Leg. 01451_ K-01 Serf collects debris. 01463_ Imp. Ion Engine melted. 01463_ Y-45 Defender destroyed. 01468_ Acquired 21 Protomatter. 01489_ R-06 Scavenger collects Lgt. Treads. Map ----- +----------------------------------------------------+ | | | | | | | | | | | | | | | | | | | | | | | | | | | | | | | | | ?????????????????????????????????????????????????? | | ?????????????????????????????????????????????????? | | ?????????????????????????????????????????????????? | | ?????????????????????????????????????????????????? | | ?????????????????????????????????????????????????? | | ?????????????????????????????????????????????????? | | ???????????############+####?????????????????????? | | ?????????? w #####?????????????????? | | ?????????? ??????????????????? | | ?????????? gu#?????????????????????? | | ?????????????????########/#####??????????????????? | | ????????????????????# #??????????????????? | | ????????????????????# r #??????????????????? | | ????????????????????# """ #??????????????????? | | ????????????????????# """ #??????????????????? | | ????????????????????# """ "" #??????????????????? | | ????????????????????# """ #??????????????????? | | ????????????????????# S" #??????????????????? | | ????????????????????# ! #??????????????????? | | ????????????????????##+########??????????????????? | | ####?????????????????# #?????????????????????????? | | =#?????????????????# #?????????????????????????? | | #?????????????????# #???######????????????????? | | #???????????????### ###?""" ]#????????????????? | | #??????#####????# # """ #????????????????? | | #/######### ###### # """ #????????????????? | | % + #????????????????? | | ########### ###### # #????????????????? | | #?????????#####????# # #????????????????? | | #?????????######???###+###?######????????????????? | | #?#######? #????[ ????????????????????????? | | ### # #?? ??????????????????????? | | # #?# """ #?????????????????????? | | < + #?# """ #?????????????????????? | +----------------------------------------------------+ Best States ------------- Heat Dissipation 43 Energy Generation 19 Energy Capacity 110 Sight Range 18 Robot Scan Range 14 Terrain Scan Density 10 Resistance: KI 20 Resistance: TH 20 Resistance: EX 20 Resistance: I 20 Resistance: S 20 Resistance: P 20 Evasion (%) 55 Offensive Hacking 10 Item Schematics ----------------- None Robot Schematics ------------------ None Fabricated ------------ Nothing Alien Tech Used ----------------- None Achievements -------------- None Challenges ------------ None Polymind | -11 -10 -10 -9 ---------- Run | Yrd Mat Min Mat Hosts 3 | 1 1 1 . Combat Hostiles 1 | . . 1 . Allies . | . . . . Unique Host Classes 3 | 1 1 1 . Average Host Suspicion 82 | 5 48 99 83 Unsuspicious Activity 38 | 2 36 . . Returns to Shadow . | . . . . Fuzzy Dispatches . | . . . . Protomatter Created 76 | . . 9 67 Used 47 | 5 12 30 . Decayed . | . . . . Highest Spend 30 | 5 12 30 . Top 5 Hosts by Kills: G-47 Trooper (-10/Mines: 12) Game ------ Seed MissileDefensePurifier Manual? 0 Play Time 00:10:01 Cumulative 142.4 hours Start 2024.07.14 @ 13:02:08 End 2024.07.14 @ 18:15:46 Sessions 3 Manual Loads 0 Difficulty Adventurer Special Mode Winter2022/Polymind Game No. 100 Rogue 46 Adventurer 20 Explorer 34 Win Type - Total 21 Types 12/0/4/4/1/0/0/0/0 Lore% 73 Gallery% 70 Achievement% 78 Wizard Run 0 Options --------- Layout 2 ASCII 0 Keyboard 0 Movement Mouse Keybinds 0 Fullscreen 1 Font 16/SmallcapsGlow Map View 55x47 Zoom Use 0% Tactical HUD 1 Map Filters NONE Filters NONE Steam 1 RUN: 0906cb28-edb0-48e9-81e3-bc8512797858